Cogmind - Beta 11 @@@ ROGUE MODE // 2022.04.09 @ 15:26:10 Player: Infomantis Result: Destroyed by as-20021 with Assembled Rifle Performance ------------- Evolutions (0) 0 Regions Visited (2) 400 Robots Destroyed (7) 35 Value Destroyed (181) 181 Prototype IDs (2) 40 Alien Tech Used (0) 0 Bonus (0) 0 TOTAL SCORE: 656 Bonus ------- None Cogmind --------- Core Integrity 0/250 Matter 300/300 Energy 100/100 System Corruption 4% Temperature Cool (0) Movement Core (50) Location -10/Mines Parts ------- > --- POWER (1) -------- (None) > --- PROPULSION (2) --- (None) > --- UTILITY (2) ------ (None) > --- WEAPON (2) ------- (None) > --- INVENTORY (5) ---- Ion Engine Compact Wheel Improved Terrain Scanner Light Armor Plating Particle Gun Peak State ------------ > --- POWER ------------ Ion Engine > --- PROPULSION ------- Aluminum Leg Aluminum Leg > --- UTILITY ---------- Small Storage Unit Seismic Detector > --- WEAPON ----------- Small Laser Light Assault Rifle > --- INVENTORY -------- Light Ion Engine Light Treads Light Treads Wheel Compact Wheel Improved Terrain Scanner Light Armor Plating EM Pulse Gun [Rating: 8] Favorites ----------- Power Ion Engine Engine Ion Engine Propulsion Aluminum Leg Leg Aluminum Leg Utility Small Storage Unit Device Seismic Detector Storage Small Storage Unit Weapon Small Laser Energy Gun Small Laser Ballistic Gun Light Assault Rifle Build | -11 -10 -10 ------- Run | Scr Mat Min Slots Evolved . | . . . Power . | . . . Propulsion . | . . . Utility . | . . . Weapon . | . . . Parts Attached 13 | 7 . 6 Power 2 | 1 . 1 Engine 2 | 1 . 1 Core . | . . . Reactor . | . . . Propulsion 5 | 2 . 3 Treads . | . . . Leg 5 | 2 . 3 Wheel . | . . . Hover . | . . . Flight . | . . . Utility 2 | 2 . . Device 1 | 1 . . Storage 1 | 1 . . Processor . | . . . Hackware . | . . . Protection . | . . . Artifact . | . . . Weapon 4 | 2 . 2 Energy Gun 3 | 1 . 2 Energy Cannon . | . . . Ballistic Gun 1 | 1 . . Ballistic Cannon . | . . . Launcher . | . . . Special Weapon . | . . . Impact Weapon . | . . . Slashing Weapon . | . . . Piercing Weapon . | . . . Special Melee Weapon . | . . . Unidentified Prototypes . | . . . Parts Lost 5 | . . 5 Power 1 | . . 1 Propulsion 1 | . . 1 Utility 1 | . . 1 Weapon 2 | . . 2 Highest Loss Streak 5 | . . 5 To Critical Strikes . | . . . Average Slot Usage (%) 98 | . 100 97 Engine 14 | . 14 14 Leg 27 | . 28 27 Device 13 | . 14 13 Storage 14 | . 14 14 Energy Gun 13 | . 14 13 Ballistic Gun 14 | . 14 14 Naked Turns 2 | . . 2 Heaviest Build 14 | 13 13 14 Greatest Support 20 | 20 20 20 Greatest Overweight (x) 1 | 1 . . Average Overweight (x) . | . . . Largest Inventory Capacity 8 | 8 8 8 Average Capacity 7 | 7 8 7 Most Carried 8 | 7 8 8 Average Carried 6 | 6 7 7 Final Capacity 8 | 8 8 5 Final Carried 8 | 7 8 5 Class Distribution -------------------- 83% | Mutant 16% | Scavenger-Mutant Dominant Class ---------------- Mutant | -10/Materials Mutant | -10/Mines Resources | -11 -10 -10 ----------- Run | Scr Mat Min Matter Collected 361 | 278 . 83 Remotely . | . . . Salvage Created 354 | 97 . 257 Parts 14 | 3 . 11 Haulers Intercepted . | . . . Recyclers Shooed . | . . . Parts Field Recycled . | . . . Retrieved Matter . | . . . Parts Self-Destructed . | . . . Prevented . | . . . Kills | -11 -10 -10 ------- Run | Scr Mat Min Combat Hostiles Destroyed 4 | . . 4 Guns 4 | . . 4 Classes Destroyed 3 | 2 . 1 Tunneler 1 | 1 . . Recycler 2 | 1 . 1 Grunt 4 | . . 4 Best Kill Streak 3 | 1 . 3 Combat Bots Only 2 | . . 2 Max Kills in Single Turn 1 | 1 . 1 Gunslinging . | . . . Exploded . | . . . Melee . | . . . Uniques/NPCs Destroyed . | . . . Combat | -11 -10 -10 -------- Run | Scr Mat Min Damage Taken 786 | . . 786 Core 258 | . . 258 Absorbed by Shields . | . . . Core Remaining (%) 100 | 100 . . Volleys Fired 35 | 8 . 27 Largest 2 | 2 . 2 Hottest 60 | 60 . 60 Shots Fired 70 | 16 . 54 Gun 70 | 16 . 54 Cannon . | . . . Launcher . | . . . Special . | . . . Kinetic 35 | 8 . 27 Thermal 31 | 8 . 23 Explosive . | . . . Electromagnetic 4 | . . 4 Robot Hit Streak 9 | 9 . 9 Robot Miss Streak 4 | 2 . 4 Penetration Max . | . . . Secondary Targets . | . . . Shots Hit Robots 50 | 13 . 37 Core Hits 18 | 4 . 14 Critical Kills . | . . . Critical Parts Destroyed . | . . . Critical Strikes . | . . . Melee Attacks . | . . . Impact . | . . . Slashing . | . . . Piercing . | . . . Sneak Attacks . | . . . Combat Hostiles . | . . . Follow-up Attacks . | . . . Damage Inflicted 496 | 123 . 373 Guns 496 | 123 . 373 Cannons . | . . . Explosions . | . . . Melee . | . . . Ramming . | . . . Kinetic 226 | 46 . 180 Thermal 249 | 77 . 172 Explosive . | . . . Electromagnetic 21 | . . 21 Impact . | . . . Slashing . | . . . Piercing . | . . . Highest Corruption 4 | . . 4 Average Corruption 3 | . . 3 Corruption Purged . | . . . Corruption Blocked . | . . . Effects 1 | . . 1 Data Loss (minor) 1 | . . 1 Overload Shots . | . . . Overflow Damage . | . . . Projectiles . | . . . Explosions . | . . . Melee . | . . . Knockbacks . | . . . Impact . | . . . Kinetic . | . . . Secondary . | . . . Self-Inflicted Damage . | . . . Shots . | . . . Rammed . | . . . Targets Rammed 1 | . . 1 Kicked 1 | . . 1 Crushed . | . . . Highest Temperature 260 | 40 . 260 Average Temperature 81 | 16 . 95 Received Heat Transfer 255 | . . 255 Siege Activations . | . . . Robots Corrupted . | . . . Combat Hostiles . | . . . Parts Fried . | . . . Impact Corruptions . | . . . Robots Melted . | . . . Combat Hostiles . | . . . Parts Melted . | . . . Heat Transferred 550 | 175 . 375 Parts Sabotaged . | . . . Parts Stolen . | . . . Parts Stripped . | . . . Power Chain Reactions . | . . . Missiles Intercepted . | . . . Alert | -11 -10 -10 ------- Run | Scr Mat Min Peak Influence 142 | 10 21 142 Initial 7 | . 6 7 Average 31 | 7 14 68 Maximum Alert Level . | . . . Low Security (%) 100 | 100 100 100 Level 1 . | . . . Level 2 . | . . . Level 3 . | . . . Level 4 . | . . . Level 5 . | . . . High Security . | . . . Max Security . | . . . Squads Dispatched . | . . . Investigation . | . . . Extermination . | . . . Reinforcement . | . . . Assault . | . . . Garrison . | . . . Intercept . | . . . Searches Triggered . | . . . Construction Impeded . | . . . Haulers Reinforced . | . . . Active Scanning Responses . | . . . Cargo Convoy Interrupts . | . . . Stealth | -11 -10 -10 --------- Run | Scr Mat Min Distress Signals . | . . . Communications Jammed . | . . . Distress Signals . | . . . Times Spotted 15 | . . 15 Peak Tracking Total 11 | . . 11 Tactical Retreats . | . . . Traps | -11 -10 -10 ------- Run | Scr Mat Min Traps Triggered . | . . . Indirectly . | . . . Trap Hack Attempts . | . . . Triggered . | . . . Disarmed . | . . . Reprogrammed . | . . . Reused . | . . . Traps Extracted . | . . . Installed . | . . . Triggered . | . . . Machines | -11 -10 -10 ---------- Run | Scr Mat Min Machines Disabled . | . . . Max in Single Turn . | . . . Machines Sabotaged . | . . . Garrisons Compromised . | . . . Overloaded Fab Kills . | . . . Hacking | -11 -10 -10 --------- Run | Scr Mat Min Machines Accessed 2 | . 2 . Terminals 2 | . 2 . Fabricators . | . . . Repair Stations . | . . . Recycling Units . | . . . Scanalyzers . | . . . Garrison Access . | . . . Total Hacks 5 | . 5 . Successful 3 | . 3 . Failed 2 | . 2 . Catastrophic . | . . . Database Lockouts . | . . . Manual 3 | . 3 . Terminals 5 | . 5 . Fabricators . | . . . Repair Stations . | . . . Recycling Units . | . . . Scanalyzers . | . . . Garrison Access . | . . . Terminal Hacks 2 | . 2 . Prototype ID Bank 1 | . 1 . Hauler Manifests 1 | . 1 . Fabricator Hacks . | . . . Repair Station Hacks . | . . . Recycling Unit Hacks . | . . . Scanalyzer . | . . . Garrison Access Hacks . | . . . Unauthorized Hacks 1 | . 1 . Terminals 1 | . 1 . Botnet 1 | . 1 . Fabricators . | . . . Repair Stations . | . . . Recycling Units . | . . . Scanalyzers . | . . . Garrison Access . | . . . Data Cores Recovered . | . . . Used . | . . . Hacking Detections 2 | . 2 . Full Trace Events . | . . . Feedback Events . | . . . Feedback Blocked . | . . . Robot Schematics Acquired . | . . . Robots Built . | . . . Authchips . | . . . Time . | . . . Total Robot Build Rating . | . . . Part Schematics Acquired . | . . . Parts Built . | . . . Authchips . | . . . Time . | . . . Total Part Build Rating . | . . . Parts Repaired . | . . . Time . | . . . Parts Recycled . | . . . Recycled Matter . | . . . Retrieved Matter . | . . . Retrieved Components . | . . . Parts Scanalyzed . | . . . Part Schematics Acquired . | . . . Parts Damaged . | . . . Bothacking | -11 -10 -10 ------------ Run | Scr Mat Min Used RIF Installer . | . . . Robots Hacked . | . . . Non-combat . | . . . Combat . | . . . Robot Hacks Applied . | . . . Relay Couplers Released . | . . . Fabnet Peak Effective % . | . . . Robots Rewired . | . . . Allies Hacked . | . . . Hacks Repelled . | . . . Allies | -11 -10 -10 -------- Run | Scr Mat Min Total Allies . | . . . Largest Group . | . . . Highest-Rated Group . | . . . Highest-Rated Ally . | . . . Total Orders . | . . . Ally Attacks . | . . . Total Damage . | . . . Kills . | . . . Allies Corrupted . | . . . Allies Melted . | . . . Intel | -11 -10 -10 ------- Run | Scr Mat Min Robot Analysis Total . | . . . Derelict Logs Recovered . | . . . Drone Launches . | . . . Drone Recoveries . | . . . Exploration | -11 -10 -10 ------------- Run | Scr Mat Min Turns Passed 512 | 267 47 198 Spaces Moved 210 | 98 39 73 Core 7 | 3 . 4 Treads . | . . . Legs 203 | 95 39 69 Wheels . | . . . Hover . | . . . Flight . | . . . Fastest Speed 50 | 50 120 50 Average Speed 118 | 118 120 116 Slowest Speed 120 | 120 120 120 Overloaded Moves . | . . . Propulsion Burnouts . | . . . Robots Hopped . | . . . Cave-ins Triggered . | . . . Exploration Rate (%) 12 | 6 12 20 Regions Visited 2 Branch Regions 1 Pre-discovered Areas . | . . . Known Exits Taken . | . . . Unknown Exits Taken 2 | 1 1 . Scrap Searched . | . . . Spaces Dug . | . . . Terrain Destroyed . | . . . Melee . | . . . Projectile . | . . . AOE . | . . . Terrain Rammed . | . . . Walls Destroyed . | . . . Machines Disabled . | . . . Actions | -11 -10 -10 --------- Run | Scr Mat Min Total 410 | 230 39 141 Wait 134 | 111 . 23 Move 208 | 97 38 73 Hop . | . . . Pick Up 10 | 7 1 2 Fast Attach 7 | 7 . . Attach . | . . . Detach . | . . . Swap 6 | . . 6 Drop 9 | . . 9 Fire 35 | 8 . 27 Melee . | . . . Ram . | . . . Kick 1 | . . 1 Crush . | . . . Escape Stasis . | . . . Rewire . | . . . Trap . | . . . Miscellaneous . | . . . Route ------- -11/Scrapyard -10/Materials -10/Mines History --------- Turn | Location | Event 13 | -11/Scrapyard | Discovered new exit (range 14) 268 | -11/Scrapyard | Entered Materials 305 | -10/Materials | Discovered new exit (range 9) 307 | -10/Materials | Build established: Mutant 315 | -10/Materials | Entered Mines 369 | -10/Mines | Met a Derelict bent on vengeance 487 | -10/Mines | Assembled infested the area 506 | -10/Mines | Core integrity fell below 50% 509 | -10/Mines | Core integrity fell below 20% 513 | -10/Mines | Destroyed by as-20021 with Assembled Rifle Last Messages --------------- 00489_ K-01 Serf collects debris. 00495_ Acquired 36 matter. 00496_ K-01 Serf collects debris. 00497_ as-01352 sneak attacks. 00497_ T-07 Excavator destroyed. 00498_ K-01 Serf destroyed. 00500_ Knocked back. 00502_ as-71471 destroyed. 00503_ Aluminum Leg destroyed. 00507_ Seismic Detector destroyed. 00507_ System corrupted by crushing effect (+1). 00508_ Kicked as-56233 out of the way. 00509_ EM Pulse Gun destroyed. 00509_ System corrupted by crushing effect (+3). 00510_ Ion Engine destroyed. 00510_ Aluminum Leg severed. 00510_ Dropped Sml. Storage Unit. 00510_ Knocked back. 00511_ Lgt. Assault Rifle destroyed. 00512_ System corrupted: Component data lost. Map ----- +----------------------------------------------------+ | ?????????????????????????????????????????????????? | | ?????????????????????????????????????????????????? | | ?????????????????????????????????????????????????? | | ?????????????????????????????????????????????????? | | ?????????????????????????????????????????????????? | | ?????????????????????????????????????????????????? | | ?????????????????????????????????????????????????? | | ?????????????????????????????????????????????????? | | ?????????????????????????????????????????????????? | | ?????????????????????????????????????????????????? | | ?????????????????????????????????????????????????? | | ?????????????????????????????? ??????????????????? | | ?????????????????????????????? ?????????????????? | | ????????????????????????????? ?????????????????? | | ????????????????????????????? #????????????????? | | ????????????????????????????# =% ##??????????????? | | ?????????????????????????### ??????????????? | | ????????????????????????## ??????????????? | | ????????????????????????# ??????????????? | | ????????????????????????# aa ?????###?????? | | ???????????????????????## a""" #? ???## ##????? | | ???????????????????????# """ ### #?## #????? | | ???????????????????????# """ ## ### #????? | | ???????????????????????# """% =%* ##???? | | ???????????????????????# a%* =[ #???? | | ????????????????????????#@ a ##### #???? | | ????????????????????????## [*a##???# ##??? | | ?????????????????????????##=a% ###### #??? | | ??????????????????????????##aa%% #??? | | ??????????????????????????##%! = #??? | | ?????????????????????????## ! =###### ## #??? | | ????????????????????????## #????###%#?# ##??? | | ????????????????????????# ##??????# #??# #???? | | ????????????????????????# ##???????#%#### #???? | | ????????????????????????# #????????# %= #???? | | ????????????????????????# #??????###=######???? | | ????????????????????????# #??????# ! ##??????? | | ????????????????????????## ##??????# #??????? | | ?????????????????????????###????????## ##?????# | | ?????????????????????????????????????## ###### | | ??????????????????????????????????????## | | ???????????????????????????????????????# | | ???????????????????????????????????????## | | ????????????????????????????????????????## | | ?????????????????????????????????????????## | | ??????????????????????????????????????????######## | | ?????????????????????????????????????????????????? | | ?????????????????????????????????????????????????? | | | | | +----------------------------------------------------+ Best States ------------- Heat Dissipation 25 Energy Generation 10 Energy Capacity 250 Matter Stores 300 Matter Capacity 300 Sight Range 16 Terrain Scan Density 10 Evasion (%) 55 Item Schematics ----------------- None Robot Schematics ------------------ None Fabricated ------------ Nothing Alien Tech Used ----------------- None Achievements -------------- None Challenges ------------ None Game ------ Seed ResetBladeMaul Manual? 0 Play Time 00:05:18 Cumulative 130.1 hours Start 2022.04.09 @ 15:21:38 End 2022.04.09 @ 15:26:10 Sessions 1 Manual Loads 0 Difficulty Rogue Special Mode None Game No. 99 Rogue 81 Adventurer 6 Explorer 12 Win Type - Total 8 Types 5/0/1/1/0/0/1/0/0 Lore% 75 Gallery% 79 Achievement% 60 Wizard Run 0 Options --------- ASCII 0 Keyboard 0 Movement Numpad Keybinds 0 Fullscreen 1 Font 12/Fuzzy Map View 83x54 Tactical HUD 1 Map Filters NONE Filters NONE Steam 1 RUN: a6ec0258-ad65-489d-93f5-7a3ca1bb3ad5